[Event "Almaty Open 2017"]
[Site "Almaty"]
[Date "2017.10.06"]
[Round "4"]
[White "Askarov, Bakhtiyar"]
[Black "Suleymenov, Alisher"]
[Result "1-0"]
[ECO "A45"]
[WhiteElo "2407"]
[BlackElo "2317"]
[Annotator "ChessBase"]
[PlyCount "99"]
[EventDate "2017.??.??"]
[EventType "swiss"]
[EventCountry "KAZ"]
[SourceTitle "playchess.com"]
[Source "ChessBase"]
[SourceQuality "1"]
[TimeControl "5400+30"]

1. d4 {[%emt 0:10:37]} Nf6 {[%emt 0:00:11]} 2. Nc3 {[%emt 0:01:48]} d5 {[%emt 0:03:15]} 3. Bf4 {[%emt 0:00:32]} g6 {[%emt 0:18:39]} 4. Qd2 {[%emt 0:07:27]} Bg7 {[%emt 0:11:51]} 5. Bh6 {[%emt 0:04:15]} Bxh6 {[%emt 0:02:33]} 6. Qxh6 {[%emt 0:00:07]} Bf5 {[%emt 0:04:25]} 7. O-O-O {[%emt 0:16:05]} c5 {[%emt 0:15:39]} 8. e3 {[%emt 0:01:14]} Nc6 {[%emt 0:01:12]} 9. f3 {[%emt 0:00:35]} Qa5 {[%emt 0:06:40]} 10. g4 {[%emt 0:00:35]} Bd7 {[%emt 0:06:41]} 11. Kb1 {[%emt 0:01:27]} b5 {[%emt 0:09:15]} 12. dxc5 {[%emt 0:03:45]} b4 {[%emt 0:00:04]} 13. Nb5 {[%emt 0:00:45]} Rb8 {[%emt 0:02:36]} 14. Nd4 {[%emt 0:08:38]} Qxc5 {[%emt 0:00:08]} 15. Nge2 {[%emt 0:03:24]} a5 {[%emt 0:06:47]} 16. h4 {[%emt 0:01:55]} a4 {[%emt 0:04:15]} 17. h5 {[%emt 0:00:14]} a3 {[%emt 0:03:38]} 18. hxg6 {[%emt 0:00:35]} fxg6 {[%emt 0:00:02]} 19. Bh3 {[%emt 0:15:24]} Ne5 {[%emt 0:01:34]} 20. Qf4 {[%emt 0:02:19]} Qd6 {[%emt 0:00:24]} 21. g5 {[%emt 0:01:04]} Nh5 {[%emt 0:00:17]} 22. Bxd7+ {[%emt 0:00:06]} Kxd7 {[%emt 0:00:08]} 23. Rxh5 {[%emt 0:07:35]} Rhf8 {[%emt 0:00:09]} 24. Nb5 {[%emt 0:01:02]} Rxf4 {[%emt 0:00:43]} 25. Nxd6 {[%emt 0:00:05]} Rxf3 {[%emt 0:00:13]} 26. Rxh7 {[%emt 0:00:07]} Kxd6 {[%emt 0:00:05]} 27. e4 {[%emt 0:00:14]} e6 {[%emt 0:01:42]} 28. Ra7 {[%emt 0:00:36]} Nc4 {[%emt 0:00:47]} 29. exd5 {[%emt 0:02:56]} exd5 {[%emt 0:00:01]} 30. Rg7 {[%emt 0:00:49]} Nxb2 {[%emt 0:01:00]} 31. Rxg6+ {[%emt 0:00:06]} Kc5 {[%emt 0:00:09]} 32. Rc1 {[%emt 0:03:26]} Rf2 {[%emt 0:00:43]} 33. Re6 {[%emt 0:00:32]} Na4 {[%emt 0:00:38]} 34. Ka1 {[%emt 0:02:46]} Nc3 {[%emt 0:00:33]} 35. Nxc3 {[%emt 0:02:28]} bxc3 {[%emt 0:00:01]} 36. g6 Rg2 {[%emt 0:00:52]} 37. Ra6 {[%emt 0:00:51]} Rb2 {[%emt 0:00:31]} 38. Rxa3 {[%emt 0:00:13]} d4 {[%emt 0:00:20]} 39. Ra5+ {[%emt 0:01:51]} Kb4 {[%emt 0:00:39]} 40. Ra8 {[%emt 0:00:12]} Rbxc2 {[%emt 0:00:39]} 41. Rb8+ {[%emt 0:00:09]} Kc4 {[%emt 0:00:29]} 42. Rxc2 {[%emt 0:00:08]} Rxg6 {[%emt 0:00:31]} 43. Kb1 {[%emt 0:01:11]} Kd3 {[%emt 0:00:26]} 44. Rb4 {[%emt 0:00:30]} Rg4 {[%emt 0:00:33]} 45. a4 {[%emt 0:00:20]} Rg1+ {[%emt 0:00:31]} 46. Rc1 {[%emt 0:00:13]} Rg2 {[%emt 0:00:05]} 47. Rd1+ {[%emt 0:00:37]} Rd2 {[%emt 0:00:02]} 48. Kc1 {[%emt 0:00:42]} Ke2 {[%emt 0:00:35]} 49. Rxd4 {[%emt 0:00:09]} Ra2 {[%emt 0:00:04]} 50. R1d3 {[%emt 0:00:43]} 1-0